Cogmind - Beta 17 @@@ ROGUE MODE // 2026.07.22 @ 16:29:44 Player: obl-vn Result: Destroyed by Q7-QVH(r) with Ripteeth Performance ------------- Evolutions (3) 1500 Regions Visited (9) 1800 Robots Destroyed (88) 440 Value Destroyed (2504) 2504 Prototype IDs (31) 620 Alien Tech Used (0) 0 Bonus (10525) 10525 TOTAL SCORE: 17389 Bonus ------- Follower Combat Kills 25 Prayed to X0-1V1 5000 Major X0-1V1 Interference 5200 Aligned with FarCom 300 Cogmind --------- Core Integrity 0/450 Matter 393/700 Energy 42/100 System Corruption 2% Temperature Cool (12) Movement Core (400) Ox7 Location -7/Scraptown Parts ------- > --- POWER (1) -------- (None) > --- PROPULSION (4) --- (None) > --- UTILITY (5) ------ High-capacity Storage Unit Improved Shield Generator > --- WEAPON (5) ------- Siege Cannon > --- INVENTORY (20) --- Improved Deuterium Engine Improved Cooling System High-capacity Battery (250) High-capacity Matter Pod (88) Seismic Detector High-powered Tractor Beam YOLO Cannon Improved Grenade Launcher Peak State ------------ > --- POWER ------------ Light Angular Momentum Engine > --- PROPULSION ------- Spiked Treads Spiked Treads Advanced Treads Improved Medium Treads > --- UTILITY ---------- High-capacity Storage Unit Improved Reaction Control System Improved Thermal Shield Self-contained Transmogrifier X0-1V1's Piety Tracker > --- WEAPON ----------- High-powered Shotgun Battle Cannon Battle Cannon Advanced Assault Cannon Advanced Assault Cannon > --- INVENTORY -------- Improved Ion Engine Cooled Ion Engine Light Treads Light Treads Light Treads Light Treads Light Treads Advanced Treads Improved Heat Sink High-capacity Battery High-capacity Matter Pod Seismic Detector Medium Reactive Plating Reflective Plating Improved Shield Generator YOLO Cannon Improved Grenade Launcher Improved Datajack [Rating: 71] Favorites ----------- Power Cooled Ion Engine Engine Cooled Ion Engine Power Core Micro Nuclear Core Propulsion Light Treads Treads Light Treads Wheel Compact Wheel Flight Unit Flight Unit Utility Self-contained Transmogrifier Device Self-contained Transmogrifier Storage High-capacity Storage Unit Processor Advanced Targeting Computer Protection Core Shielding Weapon Advanced Assault Cannon Energy Gun Small Laser Energy Cannon Ion Cannon Ballistic Gun High-powered Shotgun Ballistic Cannon Advanced Assault Cannon Launcher Grenade Launcher Special Weapon CPS Tube Impact Weapon Mace Slashing Weapon Ripper Special Melee Weapon Improved Datajack Build | -11 -10 -10 -10 -9 -8 -7 -7 -7 -7 ------- Run | Yrd Mat Min Exi Min Mat Fac Sto Rec Scr Slots Evolved 6 | . . . . . 4 2 . . . Power . | . . . . . . . . . . Propulsion 1 | . . . . . 1 . . . . Utility 3 | . . . . . 3 . . . . Weapon 2 | . . . . . . 2 . . . Parts Attached 64 | 4 8 2 . . 15 4 8 9 14 Power 4 | . 2 . . . . . 1 1 . Engine 4 | . 2 . . . . . 1 1 . Core . | . . . . . . . . . . Reactor . | . . . . . . . . . . Propulsion 15 | 2 . 1 . . 4 . 2 4 2 Treads 14 | 2 . 1 . . 3 . 2 4 2 Leg . | . . . . . . . . . . Wheel 1 | . . . . . 1 . . . . Hover . | . . . . . . . . . . Flight . | . . . . . . . . . . Utility 24 | . 4 1 . . 6 4 2 2 5 Device 11 | . 2 . . . 2 1 1 1 4 Storage 3 | . 1 1 . . 1 . . . . Processor 2 | . . . . . 1 1 . . . Hackware . | . . . . . . . . . . Protection 8 | . 1 . . . 2 2 1 1 1 Artifact . | . . . . . . . . . . Weapon 21 | 2 2 . . . 5 . 3 2 7 Energy Gun 7 | 1 1 . . . . . . 1 4 Energy Cannon 3 | . . . . . 2 . . . 1 Ballistic Gun 4 | 1 . . . . 2 . 1 . . Ballistic Cannon 4 | . 1 . . . . . 1 1 1 Launcher 1 | . . . . . 1 . . . . Special Weapon 1 | . . . . . . . . . 1 Impact Weapon . | . . . . . . . . . . Slashing Weapon . | . . . . . . . . . . Piercing Weapon . | . . . . . . . . . . Special Melee Weapon 1 | . . . . . . . 1 . . Unidentified Prototypes 2 | . 1 . . . . . . . 1 Parts Lost 30 | . 2 . . . 1 . 11 3 13 Power 3 | . 1 . . . . . 1 . 1 Propulsion 11 | . . . . . 1 . 4 1 5 Utility 7 | . 1 . . . . . 3 . 3 Weapon 9 | . . . . . . . 3 2 4 Highest Loss Streak 13 | . 1 . . . 1 . 6 4 13 To Critical Strikes . | . . . . . . . . . . Average Backups 14 | 1 5 9 12 15 16 18 17 17 18 Power 1 | 1 1 . . . 1 2 1 2 1 Propulsion 1 | . . . 1 1 1 4 5 1 . Utility 6 | . 2 5 6 7 4 7 7 10 11 Weapon 4 | . 2 4 4 6 7 4 3 3 5 Tool/Special . | . . . . . . . . . . Unused Backups 19 | . 1 . . . 4 2 1 3 8 Power 2 | . . . . . . . . 1 1 Propulsion 1 | . . . . . . . 1 . . Utility 8 | . 1 . . . . . . 1 6 Weapon 8 | . . . . . 4 2 . 1 1 Tool/Special . | . . . . . . . . . . Average Slot Usage (%) 96 | . 89 99 100 100 99 99 92 83 98 Engine 7 | . 8 12 4 8 8 7 6 6 6 Core 1 | . . . 7 4 . . . . . Treads 28 | . 27 34 37 37 30 28 25 19 11 Wheel 2 | . . . . . . . . 3 15 Device 16 | . 10 12 12 12 19 24 21 18 21 Storage 9 | . 11 12 12 12 10 7 6 6 6 Processor 1 | . . . . . 4 3 1 . . Protection 2 | . 1 . . . 5 . 2 6 6 Energy Gun 10 | . 13 13 24 25 2 . . 4 1 Ballistic Gun 7 | . 13 11 . . 4 6 1 6 20 Ballistic Cannon 5 | . . . . . 7 20 23 10 6 Peak Build Rating 71 | 4 20 24 34 36 59 67 71 61 65 Average Rating 42 | 3 14 21 30 35 52 65 63 54 61 On Entrance 34 | . 4 20 24 34 36 59 66 39 58 Avg Prop Armor Cover (%) 10 | 26 24 . . . 2 . . 17 7 Naked Turns . | . . . . . . . . . . Heaviest Build 103 | 3 23 54 57 53 64 74 76 73 103 Greatest Support 99 | 20 43 66 73 73 99 99 98 88 80 Greatest Overweight (x) 4 | . 2 . . . 3 . 1 3 4 Average Overweight (x) . | . . . . . . . . 1 1 Largest Inventory Capacity 20 | 5 10 20 20 20 20 20 20 20 20 Average Capacity 18 | 5 9 17 20 20 20 20 20 20 20 Most Carried 20 | 3 10 11 14 18 20 20 20 20 20 Average Carried 15 | 1 6 9 13 16 17 19 18 18 19 Final Capacity 20 | 5 10 20 20 20 20 20 20 20 20 Final Carried 20 | 3 10 11 14 18 20 19 18 20 9 Transmogrified Parts 58 | . 3 4 14 3 15 5 3 1 10 Integrity Recovered 520 | . 54 . 7 5 287 52 6 3 106 Class Distribution -------------------- 68% | Mutant 17% | Tank 6% | Skirmisher 3% | Scavenger-Tank Dominant Class ---------------- Mutant | -10/Materials Mutant | -10/Mines Mutant | -10/Exiles Mutant | -9/Mines Mutant | -8/Materials Skirmisher | -7/Factory Derelict-Tank | -7/Storage Scavenger-Tank | -7/Recycling Tank | -7/Scraptown Resources | -11 -10 -10 -10 -9 -8 -7 -7 -7 -7 ----------- Run | Yrd Mat Min Exi Min Mat Fac Sto Rec Scr Matter Collected 3307 | 214 441 50 200 299 515 137 589 593 269 Remotely . | . . . . . . . . . . Salvage Created 3059 | . 332 . . 182 751 102 690 351 651 Parts 154 | . 23 . . 9 31 9 36 12 34 Haulers Intercepted 6 | . 2 . . . 2 . 2 . . Recyclers Shooed 2 | . . . . . . . 1 1 . Parts Field Recycled . | . . . . . . . . . . Retrieved Matter . | . . . . . . . . . . Parts Self-Destructed . | . . . . . . . . . . Prevented . | . . . . . . . . . . Parts Restored . | . . . . . . . . . . Kills | -11 -10 -10 -10 -9 -8 -7 -7 -7 -7 ------- Run | Yrd Mat Min Exi Min Mat Fac Sto Rec Scr Combat Hostiles Destroyed 59 | . 12 . . 5 14 2 14 3 9 Guns 27 | . 10 . . 4 5 . 2 2 4 Cannons 26 | . 2 . . . 7 2 10 1 4 AOE 4 | . . . . . 2 . 2 . . Classes Destroyed 19 | . 4 . . 1 5 2 1 . 6 Worker 5 | . . . . . 2 1 2 . . Builder 2 | . . . . . . 1 1 . . Tunneler 2 | . . . . 2 . . . . . Hauler 6 | . 2 . . . 2 . 2 . . Recycler 8 | . . . . . 1 . 2 5 . Watcher 6 | . 2 . . . 2 1 1 . . Swarmer 12 | . 9 . . 3 . . . . . Grunt 16 | . 3 . . 1 7 . 5 . . Brawler 1 | . . . . . 1 . . . . Duelist 1 | . . . . . 1 . . . . Sentry 15 | . . . . . 5 1 6 3 . Specialist 3 | . . . . . . . 3 . . Hunter 1 | . . . . . . 1 . . . Bolteater 2 | . . . . . . . . . 2 Federalist 1 | . . . . . . . . . 1 Explorer 1 | . . . . . . . . . 1 Ranger 1 | . . . . . . . . . 1 Guru 1 | . . . . . . . . . 1 Scrapper 1 | . . . . . . . . . 1 Butcher 1 | . . . . . . . . . 1 Best Kill Streak 9 | . 3 . . 3 4 3 9 5 9 Combat Bots Only 9 | . 3 . . 3 3 2 8 1 9 Max Kills in Single Turn 2 | . 1 . . 1 1 2 2 1 2 Gunslinging 1 | . . . . . . . . . 1 Exploded 1 | . . . . . 1 . 1 . . Melee . | . . . . . . . . . . Uniques/NPCs Destroyed 2 | . . . . 1 . . . . 1 YI-UF0 (-9/Mines) Triborg (-7/Scraptown) Combat | -11 -10 -10 -10 -9 -8 -7 -7 -7 -7 -------- Run | Yrd Mat Min Exi Min Mat Fac Sto Rec Scr Hostile Shots Fired 737 | . 64 . . 22 83 18 241 72 237 Missed 212 | . 14 . . 6 23 7 85 18 59 Hits 525 | . 50 . . 16 60 11 156 54 178 Melee 31 | . . . . . 4 . . . 27 Projectile 494 | . 50 . . 16 56 11 156 54 151 AOE 6 | . . . . 6 . . . . . Critical Strikes 12 | . 1 . . . 4 . . . 7 Damage Taken 5883 | . 481 . . 246 940 103 1506 355 2252 Core 781 | . 76 . . 84 170 23 109 17 302 Absorbed by Shields 244 | . . . . . . . 58 . 186 Reduced by Siege Mode 160 | . . . . . . . . . 160 Redirected to Shielding 21 | . . . . . 20 . . 1 . Ignored by Resistances 401 | . . . . . . . 228 66 107 Regen/Repaired (Parts) 260 | . 172 . . . 88 . . . . Core Remaining (%) 73 | 100 . . . 45 75 . . . . Volleys Fired 181 | . 41 1 . 12 50 12 40 13 12 Largest 5 | . 2 2 . 2 2 4 5 4 4 Hottest 320 | . 85 85 . 122 92 136 171 179 320 Shots Fired 424 | . 83 2 . 24 95 31 125 39 25 Gun 192 | . 70 2 . 24 44 6 10 19 17 Cannon 225 | . 13 . . . 45 25 115 20 7 Launcher 6 | . . . . . 6 . . . . Special 1 | . . . . . . . . . 1 Kinetic 314 | . 54 1 . . 64 31 125 33 6 Thermal 89 | . 29 1 . 15 20 . . 6 18 Explosive 6 | . . . . . 6 . . . . Electromagnetic 14 | . . . . 9 5 . . . . Robot Hit Streak 32 | . 8 2 . 7 23 32 15 12 21 Robot Miss Streak 4 | . 3 1 . 4 3 3 3 2 2 Penetration Max 1 | . . . . . . . . . 1 Secondary Targets 5 | . 1 . . . . . . . 4 Max Gunslinging Chain 2 | . 1 . . . . . . . 2 Shots Hit Robots 290 | . 53 1 . 15 77 17 75 30 22 Core Hits 158 | . 24 2 . 7 43 8 34 23 17 Critical Kills 1 | . . . . . . . . . 1 Critical Parts Destroyed . | . . . . . . . . . . Critical Strikes 14 | . 1 . . . 6 . 6 . 1 Burn 1 | . . . . . 1 . . . . Meltdown 1 | . . . . . . . . . 1 Blast 10 | . 1 . . . 3 . 6 . . Sunder 2 | . . . . . 2 . . . . Melee Attacks 1 | . . . . . . . . 1 . Impact . | . . . . . . . . . . Slashing . | . . . . . . . . . . Piercing . | . . . . . . . . . . Sneak Attacks . | . . . . . . . . . . Combat Hostiles . | . . . . . . . . . . Follow-up Attacks . | . . . . . . . . . . Damage Inflicted 7489 | . 711 16 . 285 1968 393 2386 704 1026 Guns 2296 | . 525 16 . 266 601 51 99 321 417 Cannons 4314 | . 183 . . . 997 334 1815 376 609 Explosions 813 | . . . . . 359 . 454 . . Melee . | . . . . . . . . . . Ramming 66 | . 3 . . 19 11 8 18 7 . Kinetic 4827 | . 493 . . . 927 385 1914 608 500 Thermal 1423 | . 215 16 . 202 375 . . 89 526 Explosive 813 | . . . . . 359 . 454 . . Electromagnetic 196 | . . . . 64 132 . . . . Impact . | . . . . . . . . . . Slashing . | . . . . . . . . . . Piercing . | . . . . . . . . . . Entropic 164 | . . . . . 164 . . . . Highest Corruption 2 | . . . . . 1 . 1 2 2 Average Corruption 1 | . . . . . 1 . 1 2 2 Corruption Purged 1 | . . . . . 1 . . . . Corruption Blocked . | . . . . . . . . . . Effects 8 | . . . . . . . . 8 . Message Errors 1 | . . . . . . . . 1 . Matter Fused 2 | . . . . . . . . 2 . Energy Discharges 1 | . . . . . . . . 1 . Data Loss (minor) 2 | . . . . . . . . 2 . Data Loss (major) 1 | . . . . . . . . 1 . Weapon Failures 1 | . . . . . . . . 1 . Overload Shots . | . . . . . . . . . . Overflow Damage 209 | . . . . . 37 . 6 . 166 Projectiles 172 | . . . . . . . 6 . 166 Explosions 37 | . . . . . 37 . . . . Melee . | . . . . . . . . . . Knockbacks 25 | . 2 . . . 3 . 13 6 1 Impact . | . . . . . . . . . . Kinetic 23 | . 2 . . . 3 . 13 4 1 Secondary 2 | . . . . . . . . 2 . Self-Inflicted Damage 84 | . . . . . 3 . 81 . . Shots 3 | . . . . . 1 . 2 . . Rammed 12 | . 1 . . 1 3 . 3 4 . Targets Rammed 14 | . 1 . . 2 3 1 3 4 . Kicked . | . . . . . . . . . . Crushed 2 | . . . . 1 . 1 . . . Highest Temperature 339 | . 69 27 . 185 142 216 339 186 119 Average Temperature 77 | . 27 16 . 81 57 108 96 81 46 Received Heat Transfer 1958 | . 117 . . 12 360 . 429 132 908 Siege Activations 1 | . . . . . . . . . 1 Total Turns 5 | . . . . . . . . . 5 Longest Duration 5 | . . . . . . . . . 5 Martial Activations . | . . . . . . . . . . Shielding Activations . | . . . . . . . . . . Robots Disrupted . | . . . . . . . . . . Combat Hostiles . | . . . . . . . . . . Robots Corrupted . | . . . . . . . . . . Combat Hostiles . | . . . . . . . . . . Parts Fried . | . . . . . . . . . . Impact Corruptions . | . . . . . . . . . . Robots Melted 2 | . . . . 1 . . . . 1 Combat Hostiles 2 | . . . . 1 . . . . 1 Parts Melted 1 | . . . . . . . . . 1 Heat Transferred 2605 | . 465 20 . 370 740 . . 200 810 Parts Sabotaged . | . . . . . . . . . . Parts Stolen 2 | . . . . . . . . . 2 Parts Stripped . | . . . . . . . . . . Power Chain Reactions . | . . . . . . . . . . Alert | -11 -10 -10 -10 -9 -8 -7 -7 -7 -7 ------- Run | Yrd Mat Min Exi Min Mat Fac Sto Rec Scr Maximum Alert Level 1 | . 1 . . . . . 1 . . Low Security (%) 97 | 100 98 100 . 100 100 100 80 100 . Level 1 2 | . 1 . . . . . 19 . . Level 2 . | . . . . . . . . . . Level 3 . | . . . . . . . . . . Level 4 . | . . . . . . . . . . Level 5 . | . . . . . . . . . . High Security . | . . . . . . . . . . Max Security . | . . . . . . . . . . Sterilizations 1 | . . . . . 1 . . . . Peak Influence 244 | . 215 . . 62 195 59 244 78 . Initial 78 | . . . . . 1 36 15 78 . Average 40 | . 29 . . 7 91 10 89 11 . Influence Increases 1848 | . 481 . . 132 508 97 543 87 . Destroy 0b10 Robot/C 1000 | . 240 . . 100 280 40 280 60 . Destroy 0b10 Robot/NC 145 | . 20 . . 10 35 15 40 25 . Destroy Leader 254 | . 38 . . 20 88 22 86 . . Allied During Kill 3 | . . . . 2 1 . . . . Successful Hack 42 | . 30 . . . 12 . . . . Disable Machine 120 | . . . . . 45 15 60 . . Destroy Structure 86 | . . . . . 17 5 62 2 . Partial Spotted 15 | . 15 . . . . . . . . Lose Combat Pursuer 75 | . 30 . . . 30 . 15 . . Miscellaneous 108 | . 108 . . . . . . . . Influence Decreases 1848 | . 481 . . 126 433 143 377 288 . Entered New Map 193 | . . . . . 5 45 20 123 . Time Decay 1315 | . 311 . . 106 418 98 247 135 . Lost Part 170 | . 20 . . . 10 . 110 30 . Lost Ally 20 | . . . . 20 . . . . . Purge Threat 150 | . 150 . . . . . . . . Squads Dispatched 9 | . . . . 1 1 . 7 . . Investigation 2 | . . . . 1 . . 1 . . Extermination 1 | . . . . . . . 1 . . Reinforcement 3 | . . . . . 1 . 2 . . Assault . | . . . . . . . . . . Garrison 3 | . . . . . . . 3 . . Intercept . | . . . . . . . . . . Searches Triggered . | . . . . . . . . . . Construction Impeded 1 | . . . . . 1 . . . . Haulers Reinforced 1 | . . . . . . . 1 . . Active Scanning Responses . | . . . . . . . . . . Cargo Convoy Interrupts 1 | . . . . . . 1 . . . Stealth | -11 -10 -10 -10 -9 -8 -7 -7 -7 -7 --------- Run | Yrd Mat Min Exi Min Mat Fac Sto Rec Scr Distress Signals 7 | . 2 . . . 3 . 2 . . Communications Jammed . | . . . . . . . . . . Distress Signals . | . . . . . . . . . . Times Spotted 106 | . 22 . . 5 27 3 18 3 28 Peak Tracking Total 20 | . 4 . . 3 6 2 6 1 20 Tactical Retreats 4 | . 1 . . . 2 . 1 . . Traps | -11 -10 -10 -10 -9 -8 -7 -7 -7 -7 ------- Run | Yrd Mat Min Exi Min Mat Fac Sto Rec Scr Traps Triggered 3 | . . . . . . . 3 . . Indirectly . | . . . . . . . . . . Trap Hack Attempts . | . . . . . . . . . . Triggered . | . . . . . . . . . . Disarmed . | . . . . . . . . . . Reprogrammed . | . . . . . . . . . . Reused . | . . . . . . . . . . Traps Extracted . | . . . . . . . . . . Installed . | . . . . . . . . . . Triggered . | . . . . . . . . . . Machines | -11 -10 -10 -10 -9 -8 -7 -7 -7 -7 ---------- Run | Yrd Mat Min Exi Min Mat Fac Sto Rec Scr Machines Disabled 8 | . . . . . 3 1 4 . . Max in Single Turn 2 | . . . . . 1 1 2 . . Garrison Access 1 | . . . . . 1 . . . . Machines Repaired . | . . . . . . . . . . Machines Dismantled . | . . . . . . . . . . Machines Sabotaged . | . . . . . . . . . . Overloaded Fab Kills . | . . . . . . . . . . Hacking | -11 -10 -10 -10 -9 -8 -7 -7 -7 -7 --------- Run | Yrd Mat Min Exi Min Mat Fac Sto Rec Scr Machines Accessed 17 | . 8 . 1 . 6 1 1 . . Terminals 11 | . 7 . . . 3 . 1 . . Fabricators . | . . . . . . . . . . Repair Stations 2 | . 1 . . . 1 . . . . Recycling Units . | . . . . . . . . . . Scanalyzers 2 | . . . . . 1 1 . . . Garrison Access 1 | . . . . . 1 . . . . Total Hacks 55 | . 36 . 1 . 14 3 1 . . Successful 31 | . 19 . 1 . 8 2 1 . . Failed 23 | . 16 . . . 6 1 . . . Catastrophic . | . . . . . . . . . . Database Lockouts 1 | . 1 . . . . . . . . Manual 30 | . 23 . 1 . 3 . 3 . . Terminals 40 | . 31 . . . 8 . 1 . . Fabricators . | . . . . . . . . . . Repair Stations 7 | . 5 . . . 2 . . . . Recycling Units . | . . . . . . . . . . Scanalyzers 5 | . . . . . 2 3 . . . Garrison Access 2 | . . . . . 2 . . . . Terminal Hacks 11 | . 7 . 1 . 2 . 1 . . Robot Analysis 1 | . 1 . . . . . . . . Open Door 1 | . . . . . . . 1 . . Branch Access Points 1 | . . . . . 1 . . . . Unreport Threat 1 | . 1 . . . . . . . . Locate Traps 3 | . 2 . . . 1 . . . . Hauler Manifests 1 | . 1 . . . . . . . . Zone Layout 2 | . 2 . . . . . . . . Proto ID Catalog 1 | . . . 1 . . . . . . Fabricator Hacks . | . . . . . . . . . . Repair Station Hacks 6 | . 4 . . . 2 . . . . Scan Component 3 | . 2 . . . 1 . . . . Repair 3 | . 2 . . . 1 . . . . Recycling Unit Hacks . | . . . . . . . . . . Scanalyzer 3 | . . . . . 1 2 . . . Retrieve Study 3 | . . . . . 1 2 . . . Garrison Access Hacks 1 | . . . . . 1 . . . . Seal Access 1 | . . . . . 1 . . . . Unauthorized Hacks 10 | . 8 . . . 2 . . . . Terminals 10 | . 8 . . . 2 . . . . Botnet 3 | . 2 . . . 1 . . . . Operators 1 | . 1 . . . . . . . . Skim 6 | . 5 . . . 1 . . . . Fabricators . | . . . . . . . . . . Repair Stations . | . . . . . . . . . . Recycling Units . | . . . . . . . . . . Scanalyzers . | . . . . . . . . . . Garrison Access . | . . . . . . . . . . Data Cores Recovered . | . . . . . . . . . . Used . | . . . . . . . . . . Hacking Detections 12 | . 8 . . . 2 1 1 . . Full Trace Events 1 | . . . . . . . 1 . . Feedback Events . | . . . . . . . . . . Feedback Blocked . | . . . . . . . . . . Robot Schematics Acquired . | . . . . . . . . . . Robots Built . | . . . . . . . . . . Authchips . | . . . . . . . . . . Time . | . . . . . . . . . . Total Robot Build Rating . | . . . . . . . . . . Part Schematics Acquired . | . . . . . . . . . . Parts Built . | . . . . . . . . . . Authchips . | . . . . . . . . . . Time . | . . . . . . . . . . Total Part Build Rating . | . . . . . . . . . . Part Studies Acquired 3 | . . . . . 1 2 . . . Parts Repaired 3 | . 2 . . . 1 . . . . Time 84 | . 52 . . . 32 . . . . Parts Recycled . | . . . . . . . . . . Recycled Matter . | . . . . . . . . . . Retrieved Matter . | . . . . . . . . . . Retrieved Components . | . . . . . . . . . . Parts Scanalyzed . | . . . . . . . . . . Part Schematics Acquired . | . . . . . . . . . . Parts Damaged . | . . . . . . . . . . Bothacking | -11 -10 -10 -10 -9 -8 -7 -7 -7 -7 ------------ Run | Yrd Mat Min Exi Min Mat Fac Sto Rec Scr Used RIF Installer . | . . . . . . . . . . Robots Hacked 1 | . . . . . . . . 1 . Non-combat . | . . . . . . . . . . Combat 1 | . . . . . . . . 1 . Robot Hacks Applied 1 | . . . . . . . . 1 . parse_system 1 | . . . . . . . . 1 . Relay Couplers Released . | . . . . . . . . . . Fabnet Peak Effective % . | . . . . . . . . . . Robots Rewired . | . . . . . . . . . . Allies Hacked . | . . . . . . . . . . Hacks Repelled . | . . . . . . . . . . Allies | -11 -10 -10 -10 -9 -8 -7 -7 -7 -7 -------- Run | Yrd Mat Min Exi Min Mat Fac Sto Rec Scr Total Allies 4 | . . 3 . . 1 . . . . Largest Group 3 | . . 3 3 3 1 . . . . Highest-Rated Group 40 | . . 40 40 40 16 . . . . Highest-Rated Ally 16 | . . 16 16 16 16 . . . . Total Orders . | . . . . . . . . . . Ally Attacks 10 | . . . . 10 . . . . . Total Damage 123 | . . . . 123 . . . . . Kills 1 | . . . . 1 . . . . . Allies Corrupted . | . . . . . . . . . . Allies Melted . | . . . . . . . . . . X0-1V1 Amusement Gains 213 | . 30 25 . 3 16 20 33 2 84 Good Acts 33 | . 4 2 . 3 11 . 5 5 3 Bad Acts 21 | . 5 . . 3 5 2 5 1 . Intel | -11 -10 -10 -10 -9 -8 -7 -7 -7 -7 ------- Run | Yrd Mat Min Exi Min Mat Fac Sto Rec Scr Active Infowar (turns) 436 | . . . . . 7 242 . . 187 Traps 242 | . . . . . . 242 . . . Seismic 7 | . . . . . 7 . . . . ECM 187 | . . . . . . . . . 187 Robot Analysis Total 1 | . 1 . . . . . . . . Derelict Logs Recovered 2 | . . 1 . 1 . . . . . Drone Launches . | . . . . . . . . . . Drone Recoveries . | . . . . . . . . . . Exploration | -11 -10 -10 -10 -9 -8 -7 -7 -7 -7 ------------- Run | Yrd Mat Min Exi Min Mat Fac Sto Rec Scr Turns Passed 8504 | 33 1306 473 1595 861 1249 546 630 554 1257 Spaces Moved 4365 | 45 641 265 923 427 527 248 244 309 736 Core 189 | 44 145 . . . . . . . . Treads 3469 | 1 496 265 923 427 518 248 244 125 222 Legs . | . . . . . . . . . . Wheels 707 | . . . . . 9 . . 184 514 Hover . | . . . . . . . . . . Flight . | . . . . . . . . . . Fastest Speed 50 | 50 50 160 150 155 135 156 156 145 105 Average Speed 151 | 52 138 160 154 155 156 157 158 150 149 Slowest Speed 240 | 160 160 163 163 155 160 160 240 235 232 Overloaded Moves . | . . . . . . . . . . Propulsion Burnouts . | . . . . . . . . . . Robots Hopped . | . . . . . . . . . . Potential Cave-ins . | . . . . . . . . . . Cave-ins Triggered . | . . . . . . . . . . Exploration Rate (%) 52 | 3 89 63 60 77 48 7 54 75 52 Regions Visited 9 Branch Regions 6 Pre-discovered Areas 3 | . 1 1 . 1 . . . . . Known Exits Taken 2 | . . . . . . 1 1 . . Unknown Exits Taken 7 | 1 1 1 1 1 1 . . 1 . Scrap Searched 6 | . . 1 . 1 . . . . 4 Spaces Dug 4 | . . . . . . 2 2 . . Terrain Destroyed 96 | . . . . . 23 4 59 1 9 Melee . | . . . . . . . . . . Projectile 38 | . . . . . 1 4 23 1 9 AOE 58 | . . . . . 22 . 36 . . Terrain Rammed . | . . . . . . . . . . Walls Destroyed . | . . . . . . . . . . Machines Disabled . | . . . . . . . . . . Actions | -11 -10 -10 -10 -9 -8 -7 -7 -7 -7 --------- Run | Yrd Mat Min Exi Min Mat Fac Sto Rec Scr Total 5916 | 51 971 310 1090 601 859 387 404 367 876 Wait 1166 | . 261 41 166 158 227 104 99 9 101 Move 4356 | 44 640 264 922 426 526 247 243 308 736 Hop . | . . . . . . . . . . Pick Up 76 | 3 13 2 2 3 21 8 7 15 2 Fast Attach 13 | 4 4 . . . . 1 1 1 2 Attach 47 | . 3 1 . . 12 4 7 8 12 Detach 5 | . . . . . 1 1 1 . 2 Swap 17 | . 5 1 . . 7 1 1 1 1 Drop 40 | . 3 . . . 12 8 2 7 8 Fire 181 | . 41 1 . 12 50 12 40 13 12 Melee 1 | . . . . . . . . 1 . Ram . | . . . . . . . . . . Kick . | . . . . . . . . . . Crush 14 | . 1 . . 2 3 1 3 4 . Escape Stasis . | . . . . . . . . . . Rewire . | . . . . . . . . . . Trap . | . . . . . . . . . . Miscellaneous . | . . . . . . . . . . Route ------- -11/Scrapyard -10/Materials (discovered 5 exits: *Mat x3 / [*Min] / [*Sub]) -10/Mines (discovered 2 exits: *Mat / *Exi) -10/Exiles -9/Mines -8/Materials -7/Factory (discovered 2 exits: *Fac / *Sto) -7/Storage (discovered 2 exits: Fac / *Rec) -7/Recycling (discovered 2 exits: [*Fac] / [*Scr]) -7/Scraptown (discovered 1 exit: [*Fac]) History --------- Turn | Location | Event 10 | -11/Scrapyard | Discovered new exit (range 15) 34 | -11/Scrapyard | Entered Materials 215 | -10/Materials | Discovered new exit (range 9) 265 | -10/Materials | Prayed at D.C.S.S. Altar Unit 315 | -10/Materials | Build established: Mutant 582 | -10/Materials | X0-1V1 upgraded hostiles (x1) 633 | -10/Materials | Discovered new exit (range 17) 723 | -10/Materials | Learned location of 1 exit from Storage 801 | -10/Materials | Identified exit to Materials 801 | -10/Materials | Discovered new exit (range 8) 829 | -10/Materials | Forcibly received Sfc. Transmogifier from X0-1V1 846 | -10/Materials | X0-1V1 added 0b10 threat records associated with you (minor) 956 | -10/Materials | Central database locked down 1102 | -10/Materials | Learned location of 2 exits from Subcaves 1235 | -10/Materials | Repaired Lgt. Treads 1263 | -10/Materials | Repaired Assault Rifle 1263 | -10/Materials | X0-1V1 activates XOMVISION 1340 | -10/Materials | Entered Mines 1430 | -10/Mines | Propulsion slot count permanently improved by X0-1V1 (+1) 1531 | -10/Mines | Learned Materials security intel 1553 | -10/Mines | Assembled infested the area 1558 | -10/Mines | Assisted by a Guerilla fighting off Assembled 1694 | -10/Mines | Deemed a non-threat by the Exiles lab entrance 1695 | -10/Mines | Discovered new exit (range 5) 1735 | -10/Mines | Discovered exit to Materials (range 5) 1736 | -10/Mines | Learned location of Storage (-7) 1753 | -10/Mines | Assisted by bots powering up and referring to "LRC-V3" 1800 | -10/Mines | X0-1V1 activates XOMVISION 1813 | -10/Mines | Entered Exiles 1813 | -10/Exiles | Accompanied by 3 allies 1853 | -10/Exiles | Met 8R-AWN 1880 | -10/Exiles | Met EX-HEX 1929 | -10/Exiles | Met EX-BIN 1949 | -10/Exiles | Aligned with FarCom system 1950 | -10/Exiles | Given EX-Vault access code 1987 | -10/Exiles | Opened EX-Vault 1996 | -10/Exiles | Found YOLO Cannon 2028 | -10/Exiles | Warned to stay clear of 0b10 Research branches 2076 | -10/Exiles | Met EX-DEC 2155 | -10/Exiles | Discovered new exit (range 14) 3408 | -10/Exiles | Left Exiles lab with YOLO Cannon 3408 | -10/Exiles | Entered Mines 3408 | -9/Mines | Accompanied by 3 allies 3436 | -9/Mines | YI-UF0 nonchalantly dropped a Grenade Launcher on the ground 3511 | -9/Mines | Ranged accuracy permanently improved by X0-1V1 (+5%; -50 max core) 3628 | -9/Mines | Destroyed YI-UF0 3665 | -9/Mines | Lost 3 allies 3853 | -9/Mines | Discovered new exit (range 11) 4099 | -9/Mines | Core integrity fell below 50% 4269 | -9/Mines | Entered Materials 4269 | -8/Materials | Evolved 4 slots: Propulsion x1, Utility x3 4541 | -8/Materials | Mass support permanently improved by X0-1V1 (+6; -200 max core) 4936 | -8/Materials | X0-1V1 vaporized surrounding terrain (radius 17) 4955 | -8/Materials | Repaired Autogun 5005 | -8/Materials | X0-1V1 turns hostiles against one another 5107 | -8/Materials | Core integrity fell below 50% 5150 | -8/Materials | Core integrity restored by X0-1V1 (+81) 5236 | -8/Materials | Discovered new exit (range 14) 5247 | -8/Materials | X0-1V1 made a cryptic comment about sterilization and BL-4Z3 5403 | -8/Materials | X0-1V1 sent hostile G-47 Trooper (x5) 5442 | -8/Materials | Sterilization system engaged 5442 | -8/Materials | Non-combat units ordered to evacuate 5452 | -8/Materials | X0-1V1 foreshadows a heat wave 5518 | -8/Materials | Entered Factory 5518 | -7/Factory | Evolved 2 slots: Weapon x2 5699 | -7/Factory | Discovered new exit (range 19) 5793 | -7/Factory | Identified exit to Factory 5839 | -7/Factory | Build established: Skirmisher 6017 | -7/Factory | X0-1V1 enhanced Transport squad support 6030 | -7/Factory | Discovered new exit (range 8) 6039 | -7/Factory | Cargo convoy interrupted 6047 | -7/Factory | Identified exit to Storage 6064 | -7/Factory | Entered Storage 6121 | -7/Storage | X0-1V1 redirected Transport squads to designated parking area 6426 | -7/Storage | X0-1V1 sent hostile X-62 Marksman (x3) 6441 | -7/Storage | Garrison activated, responded to threat 6447 | -7/Storage | Weapon slot count temporarily expanded by X0-1V1 (+2) 6509 | -7/Storage | Destroyed 8 combat bots 6558 | -7/Storage | Identified exit to Recycling 6558 | -7/Storage | X0-1V1 revealed exit location to -7/Recycling 6647 | -7/Storage | Lost 6 parts (2n1u3w) 6685 | -7/Storage | Used back door to open Recycling access 6694 | -7/Storage | Entered Recycling 6730 | -7/Recycling | X0-1V1 activates XOMVISION 6745 | -7/Recycling | Lost 4 parts (2n2w) 7015 | -7/Recycling | X0-1V1 activates XOMVISION 7028 | -7/Recycling | Discovered new exit (range 16) 7213 | -7/Recycling | Scanned before Scraplab entrance 7234 | -7/Recycling | Entered Scraplab 7245 | -7/Recycling | Discovered new exit (range 3) 7248 | -7/Recycling | Entered Scraptown 7597 | -7/Scraptown | Build established: Tank 7771 | -7/Scraptown | Discovered new exit (range 13) 7959 | -7/Scraptown | Turned away by UFD registrar 8037 | -7/Scraptown | Visited The Evicted 8048 | -7/Scraptown | Visited Awakened 8083 | -7/Scraptown | Visited IN-MT5's Study 8305 | -7/Scraptown | Visited TADAMA 8448 | -7/Scraptown | Attached CPS modules to Triborg 8449 | -7/Scraptown | Attacked by Scraptown defenders 8450 | -7/Scraptown | Destroyed Triborg 8461 | -7/Scraptown | Weapon slot count temporarily expanded by X0-1V1 (+1) 8462 | -7/Scraptown | Core integrity fell below 50% 8486 | -7/Scraptown | Found Tri-treads 8491 | -7/Scraptown | Found Prototype Ballistic Cannon 8491 | -7/Scraptown | Identified Siege Cannon 8497 | -7/Scraptown | Core integrity fell below 20% 8505 | -7/Scraptown | Destroyed by Q7-QVH(r) with Ripteeth Last Messages --------------- 08503_ Q7-QVH(r) follow-up attacks with Ripteeth. 08503_ Tri-treads destroyed. 08504_ X0-1V1 is amused. 08504_ X0-1V1 connects you with a stream of twisted latent energy (+12 energy generation). 08504_ Penetrated by Bolt. 08504_ Critical hit (Burn: +50). 08504_ Q1-G85(x) destroyed. 08504_ Siege Cannon recoils violently, damaging core (-27). 08504_ Violent recoil rips off Gatling Laser. 08504_ Siege Slug penetrates 5K-OTL(r). 08504_ 5K-OTL(r) destroyed. 08504_ Siege Slug penetrates 2M-PMQ(x). 08504_ Destroyed Lgt. Ion Engine. 08504_ 2M-PMQ(x) destroyed. 08505_ Acquired 52 matter. 08505_ X0-1V1 is amused. 08505_ X0-1V1 chortles! Map ----- +----------------------------------------------------+ | ########## ##### ##########???????????????????? | | #???????????????????? | | #???????????????????? | | #???????????????????? | | #???????????????????? | | #???????????????????? | | ################# #???????????????????? | | #???????????????# #???????????????????? | | #???????????????# #???????????????????? | | #???????????????# #???????????????????? | | #??????######???# #???????????????????? | | #??????? ???# h #???????????????????? | | #??????? ??# ###?#???????????????? | | #????????""" ??#p ""#"#???????????????? | | #??????? """ ?# """"#???????????????? | | #?????# """ # ""###???????????????? | | #?????# """ # r ! ###?????????????????? | | #?????# "" ;g x !%[#########"??????????? | | #?????# ! ???????????? | | #?????# # !%! ?????????????? | | #?????########### = !%! "???????????????? | | #??????????????## ! *!!!! "???????????????? | | ################;!% !!%*= "???????????????? | | p j % /%!l! "???????????????? | | *%h !!r!/ "???????????????? | | !% j =@== "???????????????? | | % [ !*[ "???????????????? | | j =/j "???????????????? | | E % #"???????????????? | | &% p #????????????????? | | [ % #????????????????? | | ####### ############;# #;# ####????????????????? | | ????? ???????? ## #???????????????????? | | ??? #????"" "## #???????????????????? | | ?# #??? " "## #???????????????????? | | ?# #??# " ""## #???????????????????? | | ?# #??# k" """## #???????????????????? | | ?# #??# " ""## #???????????????????? | | ?# #??###" "## #???????????????????? | | ?# #????" " "?# #???????????????????? | | ?# #????#""""""??# #???????????????????? | | ??##########????######???# #???????????????????? | | ?????????????????????????# #???????????????????? | | ????????????????????###### #???????????????????? | | ??????????????????"""""""" #???????????????????? | | ?????????????????""" """"" #???????????????????? | | ???????????????"""" " "" #???????????????????? | | ???????????? #???????????????????? | | ???????????????"" "" "" " #???????????????????? | | ?????????????????""""""""" #???????????????????? | +----------------------------------------------------+ Best States ------------- Heat Dissipation 137 Coolant Potential 65 Energy Generation 23 Energy Capacity 1800 Matter Stores 659 Matter Capacity 1000 Sight Range 19 Terrain Scan Density 210 ECM Strength 1 Armor Coverage 450 Resistance: KI 30 Resistance: TH 25 Core Shielding 20 Evasion (%) 50 Targeting Accuracy 8 Recoil Reduction 4 Item Schematics ----------------- None Robot Schematics ------------------ None Fabricated ------------ Nothing Repaired ---------- Lgt. Treads | 32% | -10/Materials Assault Rifle | 23% | -10/Materials Autogun | 23% | -8/Materials Studied --------- Grenade Launcher | -8/Materials | Hacked Imp. Grenade Launcher | -7/Factory | Hacked Imp. Datajack | -7/Factory | Hacked Alien Tech Used ----------------- None Achievements -------------- None Challenges ------------ None Game ------ Seed VampiricIonBeam Manual? 0 Play Time 01:05:07 Cumulative 155.0 hours Start 2026.07.22 @ 15:15:49 End 2026.07.22 @ 16:29:44 Sessions 1 Manual Loads 0 Difficulty Rogue Special Mode None Game No. 113 Rogue 113 Adventurer 0 Explorer 0 Win Type - Total 3 Types 2/0/0/1/0/0/0/0/0/0 Lore% 51 Gallery% 59 Achievement% 54 Wizard Run 0 Options --------- Layout 2 ASCII 0 Keyboard 0 Movement Mouse Keybinds 0 Fullscreen 1 Font 48/Smallcaps Map View 50x44 Zoom Use 0% Tactical HUD 1 Map Filters NONE Filters NONE Steam 1 RUN: cc2a79eb-6ee5-4403-a161-351a5e9abf1c